Workbook

Sheet APORTES AL SISTEMA
A1: LIQUIDACIÒN DE PRESTACIONES SOCIALES, DEBIDAMENTE INDEXADAS, EN CONTRATO REALIDAD
A3: LIQUIDADO | F3: AÑO FINAL HASTA DONDE SE INDEXA | I3: 2024 | J3: 0 | K3: =CONCATENATE(I3,"-",J3) -> 2024-0
A4: DESDE | D4: IPC | E4: IPC | F4: SALARIO PROMEDIO MENSUAL POR AÑO | G4: # DE MESES | H4: TOTAL ANUAL SALARIOS | I4: APORTE | J4: APORTE
A5: Año | D5: FINAL | E5: INICIAL | I5: SALUD (8%) | J5: PENSIÒN (12%)
A6: 2008 | B6: 0 | C6: =CONCATENATE(A6,"-",B6) -> 2008-0 | D6: =IF(LEN($K$3)>=6,LOOKUP($K$3,IPC!$A$2:$A$69,IPC!$B$2:$B$69),0) -> 137.72 | E6: =IF(LEN(C6)>=6,LOOKUP(C6,IPC!$A$2:$A$69,IPC!$B$2:$B$69),0) -> 64.82 | F6: 6000000 | G6: 12 | H6: =F6*G6 -> 72000000 | I6: =(H6*D6/E6)*8% -> 12238000.62 | J6: =(H6*D6/E6)*12% -> 18357000.93
A7: =A6+1 -> 2009 | B7: 0 | C7: =CONCATENATE(A7,"-",B7) -> 2009-0 | D7: =IF(LEN($K$3)>=6,LOOKUP($K$3,IPC!$A$2:$A$69,IPC!$B$2:$B$69),0) -> 137.72 | E7: =IF(LEN(C7)>=6,LOOKUP(C7,IPC!$A$2:$A$69,IPC!$B$2:$B$69),0) -> 69.8 | F7: 6000000 | G7: 12 | H7: =F7*G7 -> 72000000 | I7: =(H7*D7/E7)*8% -> 11364859.6 | J7: =(H7*D7/E7)*12% -> 17047289.4
A8: =A7+1 -> 2010 | B8: 0 | C8: 2010-0 | D8: =IF(LEN($K$3)>=6,LOOKUP($K$3,IPC!$A$2:$A$69,IPC!$B$2:$B$69),0) -> 137.72 | E8: =IF(LEN(C8)>=6,LOOKUP(C8,IPC!$A$2:$A$69,IPC!$B$2:$B$69),0) -> 71.2 | F8: 6000000 | G8: 12 | H8: =F8*G8 -> 72000000 | I8: =(H8*D8/E8)*8% -> 11141393.26 | J8: =(H8*D8/E8)*12% -> 16712089.89
A9: =A8+1 -> 2011 | B9: 0 | C9: 2011-0 | D9: =IF(LEN($K$3)>=6,LOOKUP($K$3,IPC!$A$2:$A$69,IPC!$B$2:$B$69),0) -> 137.72 | E9: =IF(LEN(C9)>=6,LOOKUP(C9,IPC!$A$2:$A$69,IPC!$B$2:$B$69),0) -> 73.45 | F9: 6000000 | G9: 12 | H9: 72000000 | I9: =(H9*D9/E9)*8% -> 10800098.03 | J9: =(H9*D9/E9)*12% -> 16200147.04
A10: 2012 | B10: 0 | C10: 2012-0 | D10: =IF(LEN($K$3)>=6,LOOKUP($K$3,IPC!$A$2:$A$69,IPC!$B$2:$B$69),0) -> 137.72 | E10: =IF(LEN(C10)>=6,LOOKUP(C10,IPC!$A$2:$A$69,IPC!$B$2:$B$69),0) -> 76.19 | F10: 6000000 | G10: 12 | H10: 72000000 | I10: =(H10*D10/E10)*8% -> 10411697.07 | J10: =(H10*D10/E10)*12% -> 15617545.61
A11: 2013 | B11: 0 | C11: 2013-0 | D11: =IF(LEN($K$3)>=6,LOOKUP($K$3,IPC!$A$2:$A$69,IPC!$B$2:$B$69),0) -> 137.72 | E11: =IF(LEN(C11)>=6,LOOKUP(C11,IPC!$A$2:$A$69,IPC!$B$2:$B$69),0) -> 78.05 | F11: 6000000 | G11: 12 | H11: 72000000 | I11: =(H11*D11/E11)*8% -> 10163577.19 | J11: =(H11*D11/E11)*12% -> 15245365.79
A12: 2014 | B12: 0 | C12: 2014-0 | D12: =IF(LEN($K$3)>=6,LOOKUP($K$3,IPC!$A$2:$A$69,IPC!$B$2:$B$69),0) -> 137.72 | E12: =IF(LEN(C12)>=6,LOOKUP(C12,IPC!$A$2:$A$69,IPC!$B$2:$B$69),0) -> 79.56 | F12: 6000000 | G12: 12 | H12: 72000000 | I12: =(H12*D12/E12)*8% -> 9970678.733 | J12: =(H12*D12/E12)*12% -> 14956018.1
A13: 2015 | B13: 0 | C13: 2015-0 | D13: =IF(LEN($K$3)>=6,LOOKUP($K$3,IPC!$A$2:$A$69,IPC!$B$2:$B$69),0) -> 137.72 | E13: =IF(LEN(C13)>=6,LOOKUP(C13,IPC!$A$2:$A$69,IPC!$B$2:$B$69),0) -> 82.47 | F13: 6000000 | G13: 12 | H13: 72000000 | I13: =(H13*D13/E13)*8% -> 9618857.766 | J13: =(H13*D13/E13)*12% -> 14428286.65
A14: 2016 | B14: 0 | C14: 2016-0 | D14: =IF(LEN($K$3)>=6,LOOKUP($K$3,IPC!$A$2:$A$69,IPC!$B$2:$B$69),0) -> 137.72 | E14: =IF(LEN(C14)>=6,LOOKUP(C14,IPC!$A$2:$A$69,IPC!$B$2:$B$69),0) -> 88.05 | F14: 6000000 | G14: 12 | H14: 72000000 | I14: =(H14*D14/E14)*8% -> 9009281.09 | J14: =(H14*D14/E14)*12% -> 13513921.64
A15: 2017 | B15: 0 | C15: 2017-0 | D15: =IF(LEN($K$3)>=6,LOOKUP($K$3,IPC!$A$2:$A$69,IPC!$B$2:$B$69),0) -> 137.72 | E15: =IF(LEN(C15)>=6,LOOKUP(C15,IPC!$A$2:$A$69,IPC!$B$2:$B$69),0) -> 93.11 | F15: 6000000 | G15: 12 | H15: 72000000 | I15: =(H15*D15/E15)*8% -> 8519677.8 | J15: =(H15*D15/E15)*12% -> 12779516.7
A16: 2018 | B16: 0 | C16: 2018-0 | D16: =IF(LEN($K$3)>=6,LOOKUP($K$3,IPC!$A$2:$A$69,IPC!$B$2:$B$69),0) -> 137.72 | E16: =IF(LEN(C16)>=6,LOOKUP(C16,IPC!$A$2:$A$69,IPC!$B$2:$B$69),0) -> 96.92 | F16: 6000000 | G16: 12 | H16: 72000000 | I16: =(H16*D16/E16)*8% -> 8184762.691 | J16: =(H16*D16/E16)*12% -> 12277144.04
A17: 2019 | B17: 0 | C17: 2019-0 | D17: =IF(LEN($K$3)>=6,LOOKUP($K$3,IPC!$A$2:$A$69,IPC!$B$2:$B$69),0) -> 137.72 | E17: =IF(LEN(C17)>=6,LOOKUP(C17,IPC!$A$2:$A$69,IPC!$B$2:$B$69),0) -> 100 | F17: 6000000 | G17: 12 | H17: 72000000 | I17: =(H17*D17/E17)*8% -> 7932672 | J17: =(H17*D17/E17)*12% -> 11899008
A18: 2020 | B18: 0 | C18: 2020-0 | D18: =IF(LEN($K$3)>=6,LOOKUP($K$3,IPC!$A$2:$A$69,IPC!$B$2:$B$69),0) -> 137.72 | E18: =IF(LEN(C18)>=6,LOOKUP(C18,IPC!$A$2:$A$69,IPC!$B$2:$B$69),0) -> 103.8 | F18: 6000000 | G18: 12 | H18: 72000000 | I18: =(H18*D18/E18)*8% -> 7642265.896 | J18: =(H18*D18/E18)*12% -> 11463398.84
A19: 2021 | B19: 0 | C19: 2021-0 | D19: =IF(LEN($K$3)>=6,LOOKUP($K$3,IPC!$A$2:$A$69,IPC!$B$2:$B$69),0) -> 137.72 | E19: =IF(LEN(C19)>=6,LOOKUP(C19,IPC!$A$2:$A$69,IPC!$B$2:$B$69),0) -> 105.48 | F19: 6000000 | G19: 12 | H19: 72000000 | I19: =(H19*D19/E19)*8% -> 7520546.075 | J19: =(H19*D19/E19)*12% -> 11280819.11
A20: 2022 | B20: 0 | C20: 2022-0 | D20: =IF(LEN($K$3)>=6,LOOKUP($K$3,IPC!$A$2:$A$69,IPC!$B$2:$B$69),0) -> 137.72 | E20: =IF(LEN(C20)>=6,LOOKUP(C20,IPC!$A$2:$A$69,IPC!$B$2:$B$69),0) -> 111.41 | F20: 6000000 | G20: 12 | H20: 72000000 | I20: =(H20*D20/E20)*8% -> 7120251.324 | J20: =(H20*D20/E20)*12% -> 10680376.99
A21: 2023 | B21: 0 | C21: 2023-0 | D21: =IF(LEN($K$3)>=6,LOOKUP($K$3,IPC!$A$2:$A$69,IPC!$B$2:$B$69),0) -> 137.72 | E21: =IF(LEN(C21)>=6,LOOKUP(C21,IPC!$A$2:$A$69,IPC!$B$2:$B$69),0) -> 126.03 | F21: 6000000 | G21: 1 | H21: 6000000 | I21: =(H21*D21/E21)*8% -> 524522.7327 | J21: =(H21*D21/E21)*12% -> 786784.099
A22: 2024 | B22: 0 | C22: 2024-0 | D22: =IF(LEN($K$3)>=6,LOOKUP($K$3,IPC!$A$2:$A$69,IPC!$B$2:$B$69),0) -> 137.72 | E22: =IF(LEN(C22)>=6,LOOKUP(C22,IPC!$A$2:$A$69,IPC!$B$2:$B$69),0) -> 137.72 | H22: 0 | I22: =(H22*D22/E22)*8% -> 0 | J22: =(H22*D22/E22)*12% -> 0
A23: 2025 | B23: 0 | C23: 2025-0 | D23: =IF(LEN($K$3)>=6,LOOKUP($K$3,IPC!$A$2:$A$69,IPC!$B$2:$B$69),0) -> 137.72 | E23: =IF(LEN(C23)>=6,LOOKUP(C23,IPC!$A$2:$A$69,IPC!$B$2:$B$69),0) -> 137.72 | H23: 0 | I23: =F23/12*G23 -> 0 | J23: =I23*(D23/E23) -> 0 | K23: =J23*G23/100 -> 0 | L23: =I23 -> 0 | M23: =L23*(D23/E23) -> 0 | N23: =L23/2 -> 0 | O23: =N23*(D23/E23) -> 0 | P23: =(H23*D23/E23)*8% -> 0 | Q23: =(H23*D23/E23)*12% -> 0
A24: 2026 | B24: 0 | C24: 2026-0 | D24: =IF(LEN($K$3)>=6,LOOKUP($K$3,IPC!$A$2:$A$69,IPC!$B$2:$B$69),0) -> 137.72 | E24: =IF(LEN(C24)>=6,LOOKUP(C24,IPC!$A$2:$A$69,IPC!$B$2:$B$69),0) -> 137.72 | H24: 0 | I24: 0 | J24: 0 | K24: 0 | L24: 0 | M24: 0 | N24: 0 | O24: 0 | P24: 0 | Q24: 0
A25: 2027 | B25: 0 | C25: 2027-0 | D25: =IF(LEN($K$3)>=6,LOOKUP($K$3,IPC!$A$2:$A$69,IPC!$B$2:$B$69),0) -> 137.72 | E25: =IF(LEN(C25)>=6,LOOKUP(C25,IPC!$A$2:$A$69,IPC!$B$2:$B$69),0) -> 137.72 | H25: 0 | I25: 0 | J25: 0 | K25: 0 | L25: 0 | M25: 0 | N25: 0 | O25: 0 | P25: 0 | Q25: 0
A26: 2028 | B26: 0 | C26: 2028-0 | D26: =IF(LEN($K$3)>=6,LOOKUP($K$3,IPC!$A$2:$A$69,IPC!$B$2:$B$69),0) -> 137.72 | E26: =IF(LEN(C26)>=6,LOOKUP(C26,IPC!$A$2:$A$69,IPC!$B$2:$B$69),0) -> 137.72 | H26: 0 | I26: 0 | J26: 0 | K26: 0 | L26: 0 | M26: 0 | N26: 0 | O26: 0 | P26: 0 | Q26: 0
A27: 2029 | B27: 0 | C27: 2029-0 | D27: =IF(LEN($K$3)>=6,LOOKUP($K$3,IPC!$A$2:$A$69,IPC!$B$2:$B$69),0) -> 137.72 | E27: =IF(LEN(C27)>=6,LOOKUP(C27,IPC!$A$2:$A$69,IPC!$B$2:$B$69),0) -> 137.72 | H27: 0 | I27: 0 | J27: 0 | K27: 0 | L27: 0 | M27: 0 | N27: 0 | O27: 0 | P27: 0 | Q27: 0
A28: 2030 | B28: 0 | C28: 2030-0 | D28: =IF(LEN($K$3)>=6,LOOKUP($K$3,IPC!$A$2:$A$69,IPC!$B$2:$B$69),0) -> 137.72 | E28: =IF(LEN(C28)>=6,LOOKUP(C28,IPC!$A$2:$A$69,IPC!$B$2:$B$69),0) -> 137.72 | H28: 0 | I28: 0 | J28: 0 | K28: 0 | L28: 0 | M28: 0 | N28: 0 | O28: 0 | P28: 0 | Q28: 0
A29: 2031 | B29: 0 | C29: 2031-0 | D29: =IF(LEN($K$3)>=6,LOOKUP($K$3,IPC!$A$2:$A$69,IPC!$B$2:$B$69),0) -> 137.72 | E29: =IF(LEN(C29)>=6,LOOKUP(C29,IPC!$A$2:$A$69,IPC!$B$2:$B$69),0) -> 137.72 | H29: 0 | I29: 0 | J29: 0 | K29: 0 | L29: 0 | M29: 0 | N29: 0 | O29: 0 | P29: 0 | Q29: 0
A30: 2032 | B30: 0 | C30: 2032-0 | D30: =IF(LEN($K$3)>=6,LOOKUP($K$3,IPC!$A$2:$A$69,IPC!$B$2:$B$69),0) -> 137.72 | E30: =IF(LEN(C30)>=6,LOOKUP(C30,IPC!$A$2:$A$69,IPC!$B$2:$B$69),0) -> 137.72 | H30: 0 | I30: 0 | J30: 0 | K30: 0 | L30: 0 | M30: 0 | N30: 0 | O30: 0 | P30: 0 | Q30: 0
A31: 2033 | B31: 0 | C31: 2033-0 | D31: =IF(LEN($K$3)>=6,LOOKUP($K$3,IPC!$A$2:$A$69,IPC!$B$2:$B$69),0) -> 137.72 | E31: =IF(LEN(C31)>=6,LOOKUP(C31,IPC!$A$2:$A$69,IPC!$B$2:$B$69),0) -> 137.72 | H31: 0 | I31: 0 | J31: 0 | K31: 0 | L31: 0 | M31: 0 | N31: 0 | O31: 0 | P31: 0 | Q31: 0
A32: 2034 | B32: 0 | C32: 2034-0 | D32: =IF(LEN($K$3)>=6,LOOKUP($K$3,IPC!$A$2:$A$69,IPC!$B$2:$B$69),0) -> 137.72 | E32: =IF(LEN(C32)>=6,LOOKUP(C32,IPC!$A$2:$A$69,IPC!$B$2:$B$69),0) -> 137.72 | H32: 0 | I32: 0 | J32: 0 | K32: 0 | L32: 0 | M32: 0 | N32: 0 | O32: 0 | P32: 0 | Q32: 0
A33: 2035 | B33: 0 | C33: 2035-0 | D33: =IF(LEN($K$3)>=6,LOOKUP($K$3,IPC!$A$2:$A$69,IPC!$B$2:$B$69),0) -> 137.72 | E33: =IF(LEN(C33)>=6,LOOKUP(C33,IPC!$A$2:$A$69,IPC!$B$2:$B$69),0) -> 137.72 | H33: 0 | I33: 0 | J33: 0 | K33: 0 | L33: 0 | M33: 0 | N33: 0 | O33: 0 | P33: 0 | Q33: 0
A34: 2036 | B34: 0 | C34: 2036-0 | D34: =IF(LEN($K$3)>=6,LOOKUP($K$3,IPC!$A$2:$A$69,IPC!$B$2:$B$69),0) -> 137.72 | E34: =IF(LEN(C34)>=6,LOOKUP(C34,IPC!$A$2:$A$69,IPC!$B$2:$B$69),0) -> 137.72 | H34: 0 | I34: 0 | J34: 0 | K34: 0 | L34: 0 | M34: 0 | N34: 0 | O34: 0 | P34: 0 | Q34: 0
A35: 2037 | B35: 0 | C35: 2037-0 | D35: =IF(LEN($K$3)>=6,LOOKUP($K$3,IPC!$A$2:$A$69,IPC!$B$2:$B$69),0) -> 137.72 | E35: =IF(LEN(C35)>=6,LOOKUP(C35,IPC!$A$2:$A$69,IPC!$B$2:$B$69),0) -> 137.72 | H35: 0 | I35: 0 | J35: 0 | K35: 0 | L35: 0 | M35: 0 | N35: 0 | O35: 0 | P35: 0 | Q35: 0
A36: 2038 | B36: 0 | C36: 2038-0 | D36: =IF(LEN($K$3)>=6,LOOKUP($K$3,IPC!$A$2:$A$69,IPC!$B$2:$B$69),0) -> 137.72 | E36: =IF(LEN(C36)>=6,LOOKUP(C36,IPC!$A$2:$A$69,IPC!$B$2:$B$69),0) -> 137.72 | H36: 0 | I36: 0 | J36: 0 | K36: 0 | L36: 0 | M36: 0 | N36: 0 | O36: 0 | P36: 0 | Q36: 0
A37: 2039 | B37: 0 | C37: 2039-0 | D37: =IF(LEN($K$3)>=6,LOOKUP($K$3,IPC!$A$2:$A$69,IPC!$B$2:$B$69),0) -> 137.72 | E37: =IF(LEN(C37)>=6,LOOKUP(C37,IPC!$A$2:$A$69,IPC!$B$2:$B$69),0) -> 137.72 | H37: 0 | I37: 0 | J37: 0 | K37: 0 | L37: 0 | M37: 0 | N37: 0 | O37: 0 | P37: 0 | Q37: 0
A38: 2040 | B38: 0 | C38: 2040-0 | D38: =IF(LEN($K$3)>=6,LOOKUP($K$3,IPC!$A$2:$A$69,IPC!$B$2:$B$69),0) -> 137.72 | E38: =IF(LEN(C38)>=6,LOOKUP(C38,IPC!$A$2:$A$69,IPC!$B$2:$B$69),0) -> 137.72 | H38: 0 | I38: 0 | J38: 0 | K38: 0 | L38: =I38 -> 0 | M38: 0 | N38: 0 | O38: 0 | P38: 0 | Q38: 0
A39: 2041 | B39: 0 | C39: 2041-0 | D39: =IF(LEN($K$3)>=6,LOOKUP($K$3,IPC!$A$2:$A$69,IPC!$B$2:$B$69),0) -> 137.72 | E39: =IF(LEN(C39)>=6,LOOKUP(C39,IPC!$A$2:$A$69,IPC!$B$2:$B$69),0) -> 137.72 | H39: 0 | I39: 0 | J39: 0 | K39: 0 | L39: 0 | M39: 0 | N39: 0 | O39: 0 | P39: 0 | Q39: 0
A40: 2042 | B40: 0 | C40: 2042-0 | D40: =IF(LEN($K$3)>=6,LOOKUP($K$3,IPC!$A$2:$A$69,IPC!$B$2:$B$69),0) -> 137.72 | E40: =IF(LEN(C40)>=6,LOOKUP(C40,IPC!$A$2:$A$69,IPC!$B$2:$B$69),0) -> 137.72 | H40: 0 | I40: 0 | J40: 0 | K40: 0 | L40: 0 | M40: 0 | N40: 0 | O40: 0 | P40: 0 | Q40: 0
A41: 2043 | B41: 0 | C41: 2043-0 | D41: =IF(LEN($K$3)>=6,LOOKUP($K$3,IPC!$A$2:$A$69,IPC!$B$2:$B$69),0) -> 137.72 | E41: =IF(LEN(C41)>=6,LOOKUP(C41,IPC!$A$2:$A$69,IPC!$B$2:$B$69),0) -> 137.72 | H41: 0 | I41: 0 | J41: 0 | K41: 0 | L41: 0 | M41: 0 | N41: 0 | O41: 0 | P41: 0 | Q41: 0
A42: 2044 | B42: 0 | C42: 2044-0 | D42: =IF(LEN($K$3)>=6,LOOKUP($K$3,IPC!$A$2:$A$69,IPC!$B$2:$B$69),0) -> 137.72 | E42: =IF(LEN(C42)>=6,LOOKUP(C42,IPC!$A$2:$A$69,IPC!$B$2:$B$69),0) -> 137.72 | H42: 0 | I42: 0 | J42: 0 | K42: 0 | L42: 0 | M42: 0 | N42: 0 | O42: 0 | P42: 0 | Q42: 0
A43: 2045 | B43: 0 | C43: 2045-0 | D43: =IF(LEN($K$3)>=6,LOOKUP($K$3,IPC!$A$2:$A$69,IPC!$B$2:$B$69),0) -> 137.72 | E43: =IF(LEN(C43)>=6,LOOKUP(C43,IPC!$A$2:$A$69,IPC!$B$2:$B$69),0) -> 137.72 | H43: 0 | I43: 0 | J43: 0 | K43: 0 | L43: 0 | M43: 0 | N43: 0 | O43: 0 | P43: 0 | Q43: 0
A44: 2046 | B44: 0 | C44: 2046-0 | D44: =IF(LEN($K$3)>=6,LOOKUP($K$3,IPC!$A$2:$A$69,IPC!$B$2:$B$69),0) -> 137.72 | E44: =IF(LEN(C44)>=6,LOOKUP(C44,IPC!$A$2:$A$69,IPC!$B$2:$B$69),0) -> 137.72 | H44: 0 | I44: 0 | J44: 0 | K44: 0 | L44: 0 | M44: 0 | N44: 0 | O44: 0 | P44: 0 | Q44: 0
A45: 2047 | B45: 0 | C45: 2047-0 | D45: =IF(LEN($K$3)>=6,LOOKUP($K$3,IPC!$A$2:$A$69,IPC!$B$2:$B$69),0) -> 137.72 | E45: =IF(LEN(C45)>=6,LOOKUP(C45,IPC!$A$2:$A$69,IPC!$B$2:$B$69),0) -> 137.72 | H45: 0 | I45: 0 | J45: 0 | K45: 0 | L45: 0 | M45: 0 | N45: 0 | O45: 0 | P45: 0 | Q45: 0
A46: 2048 | B46: 0 | C46: 2048-0 | D46: =IF(LEN($K$3)>=6,LOOKUP($K$3,IPC!$A$2:$A$69,IPC!$B$2:$B$69),0) -> 137.72 | E46: =IF(LEN(C46)>=6,LOOKUP(C46,IPC!$A$2:$A$69,IPC!$B$2:$B$69),0) -> 137.72 | H46: 0 | I46: 0 | J46: 0 | K46: 0 | L46: 0 | M46: 0 | N46: 0 | O46: 0 | P46: 0 | Q46: 0
A47: 2049 | B47: 0 | C47: 2049-0 | D47: =IF(LEN($K$3)>=6,LOOKUP($K$3,IPC!$A$2:$A$69,IPC!$B$2:$B$69),0) -> 137.72 | E47: =IF(LEN(C47)>=6,LOOKUP(C47,IPC!$A$2:$A$69,IPC!$B$2:$B$69),0) -> 137.72 | H47: 0 | I47: 0 | J47: 0 | K47: 0 | L47: 0 | M47: 0 | N47: 0 | O47: 0 | P47: 0 | Q47: 0
A48: 2050 | B48: 0 | C48: 2050-0 | D48: =IF(LEN($K$3)>=6,LOOKUP($K$3,IPC!$A$2:$A$69,IPC!$B$2:$B$69),0) -> 137.72 | E48: =IF(LEN(C48)>=6,LOOKUP(C48,IPC!$A$2:$A$69,IPC!$B$2:$B$69),0) -> 137.72 | H48: 0 | I48: 0 | J48: 0 | K48: 0 | L48: 0 | M48: 0 | N48: 0 | O48: 0 | P48: 0 | Q48: 0
A49: 2051 | B49: 0 | C49: 2051-0 | D49: =IF(LEN($K$3)>=6,LOOKUP($K$3,IPC!$A$2:$A$69,IPC!$B$2:$B$69),0) -> 137.72 | E49: =IF(LEN(C49)>=6,LOOKUP(C49,IPC!$A$2:$A$69,IPC!$B$2:$B$69),0) -> 137.72 | H49: 0 | I49: 0 | J49: 0 | K49: 0 | L49: 0 | M49: 0 | N49: 0 | O49: 0 | P49: 0 | Q49: 0
A50: 2052 | B50: 0 | C50: 2052-0 | D50: =IF(LEN($K$3)>=6,LOOKUP($K$3,IPC!$A$2:$A$69,IPC!$B$2:$B$69),0) -> 137.72 | E50: =IF(LEN(C50)>=6,LOOKUP(C50,IPC!$A$2:$A$69,IPC!$B$2:$B$69),0) -> 137.72 | H50: 0 | I50: 0 | J50: 0 | K50: 0 | L50: 0 | M50: 0 | N50: 0 | O50: 0 | P50: 0 | Q50: 0
A51: 2053 | B51: 0 | C51: 2053-0 | D51: =IF(LEN($K$3)>=6,LOOKUP($K$3,IPC!$A$2:$A$69,IPC!$B$2:$B$69),0) -> 137.72 | E51: =IF(LEN(C51)>=6,LOOKUP(C51,IPC!$A$2:$A$69,IPC!$B$2:$B$69),0) -> 137.72 | H51: 0 | I51: 0 | J51: 0 | K51: 0 | L51: 0 | M51: 0 | N51: 0 | O51: 0 | P51: 0 | Q51: 0
A52: 2054 | B52: 0 | C52: 2054-0 | D52: =IF(LEN($K$3)>=6,LOOKUP($K$3,IPC!$A$2:$A$69,IPC!$B$2:$B$69),0) -> 137.72 | E52: =IF(LEN(C52)>=6,LOOKUP(C52,IPC!$A$2:$A$69,IPC!$B$2:$B$69),0) -> 137.72 | H52: 0 | I52: 0 | J52: 0 | K52: 0 | L52: 0 | M52: 0 | N52: 0 | O52: 0 | P52: 0 | Q52: 0
A53: 2055 | B53: 0 | C53: 2055-0 | D53: =IF(LEN($K$3)>=6,LOOKUP($K$3,IPC!$A$2:$A$69,IPC!$B$2:$B$69),0) -> 137.72 | E53: =IF(LEN(C53)>=6,LOOKUP(C53,IPC!$A$2:$A$69,IPC!$B$2:$B$69),0) -> 137.72 | H53: 0 | I53: 0 | J53: 0 | K53: 0 | L53: 0 | M53: 0 | N53: 0 | O53: 0 | P53: 0 | Q53: 0
A54: 2056 | B54: 0 | C54: 2056-0 | D54: =IF(LEN($K$3)>=6,LOOKUP($K$3,IPC!$A$2:$A$69,IPC!$B$2:$B$69),0) -> 137.72 | E54: =IF(LEN(C54)>=6,LOOKUP(C54,IPC!$A$2:$A$69,IPC!$B$2:$B$69),0) -> 137.72 | H54: 0 | I54: 0 | J54: 0 | K54: 0 | L54: 0 | M54: 0 | N54: 0 | O54: 0 | P54: 0 | Q54: 0
A55: 2057 | B55: 0 | C55: 2057-0 | D55: =IF(LEN($K$3)>=6,LOOKUP($K$3,IPC!$A$2:$A$69,IPC!$B$2:$B$69),0) -> 137.72 | E55: =IF(LEN(C55)>=6,LOOKUP(C55,IPC!$A$2:$A$69,IPC!$B$2:$B$69),0) -> 137.72 | H55: 0 | I55: 0 | J55: 0 | K55: 0 | L55: 0 | M55: 0 | N55: 0 | O55: 0 | P55: 0 | Q55: 0
A56: 2058 | B56: 0 | C56: 2058-0 | D56: =IF(LEN($K$3)>=6,LOOKUP($K$3,IPC!$A$2:$A$69,IPC!$B$2:$B$69),0) -> 137.72 | E56: =IF(LEN(C56)>=6,LOOKUP(C56,IPC!$A$2:$A$69,IPC!$B$2:$B$69),0) -> 137.72 | H56: 0 | I56: 0 | J56: 0 | K56: 0 | L56: 0 | M56: 0 | N56: 0 | O56: 0 | P56: 0 | Q56: 0
A57: 2059 | B57: 0 | C57: 2059-0 | D57: =IF(LEN($K$3)>=6,LOOKUP($K$3,IPC!$A$2:$A$69,IPC!$B$2:$B$69),0) -> 137.72 | E57: =IF(LEN(C57)>=6,LOOKUP(C57,IPC!$A$2:$A$69,IPC!$B$2:$B$69),0) -> 137.72 | H57: 0 | I57: 0 | J57: 0 | K57: 0 | L57: 0 | M57: 0 | N57: =L57/2 -> 0 | O57: 0 | P57: 0 | Q57: 0
A58: CONSOLIDADO
I59: APORTE SALUD | J59: APORTE PENSIÒN
I60: =SUM(I6:I22) -> 142163141.9 | J60: =SUM(J6:J22) -> 213244712.8
A61: TOTAL APORTES EN SALUD (8%) Y PENSIÓN (12%): | I61: =I60+J60 -> 355407854.7

Sheet SALARIOS Y PRESTACIONES
A2: PRESCRIPCIÓN
A3: SALARIOS: La reclamación se radicó el 28/06/2024, por lo tanto la diferencia salarial se podría reclamar desde el 28/06/2021. No obstante, se resalta que no hubo pago en los meses de diciembre de 2022 y enero de 2023, los cuales se aduedan en su totalidad. CESANTÍAS: No prescriben INTERESES CESANTÍAS: Últimos 3 años (Agosto/2021-Enero 2023) PRIMAS: Últimos 3 años (Agosto/2021 a Enero 2023) VACACIONES: Últimos 4 años (2020 a Enero 2023)
A13: SALARIOS ADEUDADOS
A14: Desde | B14: Hasta | C14: Valor | E14: DESDE | F14: HASTA | G14: SALARIO | H14: DÍAS | I14: PRIMAS | K14: DESDE | L14: HASTA | M14: SALARIO | N14: DÍAS | O14: VACACIONES
E15: 2021-08-28 | F15: 2021-12-31 | G15: 6000000 | H15: =DAYS360(E15,F15) -> 123 | I15: =(G15*H15)/360 -> 2050000 | K15: 2020-01-01 | L15: 2023-01-31 | M15: 6000000 | N15: =DAYS360(K15,L15)+1 -> 1111 | O15: =(M15*N15)/720 -> 9258333.333
A16: 2022-12-01 | B16: 2022-12-30 | C16: 6000000 | E16: 2022-01-01 | F16: 2022-12-31 | G16: 6000000 | H16: =DAYS360(E16,F16) -> 360 | I16: =(G16*H16)/360 -> 6000000 | K16: TOTAL ADEUDADO | O16: =SUM(O15) -> 9258333.333
A17: 2023-01-01 | B17: 2023-01-30 | C17: 6000000 | E17: 2023-01-01 | F17: 2023-01-31 | G17: 6000000 | H17: =DAYS360(E17,F17) -> 30 | I17: 500000
A18: TOTAL | C18: =SUM(C15:C17) -> 12000000 | K18: DESDE | L18: HASTA | M18: CESANTÍAS | N18: DÍAS | O18: INTERESES
E19: TOTAL ADEUDADO | I19: =SUM(I15:I18) -> 8550000 | K19: 2021-08-28 | L19: 2021-12-31 | M19: =+I35 -> 6000000 | N19: =DAYS360(K19,L19) -> 123 | O19: =(M19*N19*0.12)/360 -> 246000
K20: 2022-01-01 | L20: 2022-12-31 | M20: =+I36 -> 6000000 | N20: 360 | O20: 720000
E21: DESDE | F21: HASTA | G21: SALARIO | H21: DÍAS | I21: CESANTÍAS | K21: 2023-01-01 | L21: 2023-01-31 | M21: =(K21*L21)/360 -> 5610508.719 | N21: =DAYS360(K21,L21) -> 30 | O21: =(M21*N21*0.12)/360 -> 56105.08719
E22: 2008-01-01 | F22: 2008-12-31 | G22: 6000000 | H22: =DAYS360(E22,F22) -> 360 | I22: =(G22*H22)/360 -> 6000000 | K22: TOTAL ADEUDADO | O22: =SUM(O19:O21) -> 1022105.087
E23: 2009-01-01 | F23: 2009-12-31 | G23: 6000000 | H23: =DAYS360(E23,F23) -> 360 | I23: =(G23*H23)/360 -> 6000000
E24: 2010-01-01 | F24: 2010-12-31 | G24: 6000000 | H24: =DAYS360(E24,F24) -> 360 | I24: 6000000 | K24: INDEMNIZACIÓN ARTÍCULO 64 DEL C.S.T.
E25: 2011-01-01 | F25: 2011-12-31 | G25: 6000000 | H25: 360 | I25: 6000000 | N25: AÑO | O25: MES | P25: DÍA | Q25: Tiempo Laborado en:
E26: 2012-01-01 | F26: 2012-12-31 | G26: 6000000 | H26: 360 | I26: 6000000 | K26: Fecha de Terminación: | N26: 2023 | O26: 1 | P26: 31 | Q26: Días | R26: Años
E27: 2013-01-01 | F27: 2013-12-31 | G27: 6000000 | H27: 360 | I27: 6000000 | K27: Fecha de Ingreso: | N27: 2008 | O27: 1 | P27: 1 | Q27: =(N26-N27)*360+(O26-O27)*30+(P26-P27+1) -> 5431 | R27: =Q27/360 -> 15.08611111
E28: 2014-01-01 | F28: 2014-12-31 | G28: 6000000 | H28: 360 | I28: 6000000 | K28: Ingreso Mensual: | N28: 6000000
E29: 2015-01-01 | F29: 2015-12-31 | G29: 6000000 | H29: 360 | I29: 6000000 | K29: Ingreso Diario: | N29: =N28/30 -> 200000
E30: 2016-01-01 | F30: 2016-12-31 | G30: 6000000 | H30: 360 | I30: 6000000 | K30: Indemnización primer año | N30: =N28 -> 6000000
E31: 2017-01-01 | F31: 2017-12-31 | G31: 6000000 | H31: 360 | I31: 6000000 | K31: Indemnización años adicionales: | N31: =R27-1 -> 14.08611111 | O31: =N31*20*N29 -> 56344444.44
E32: 2018-01-01 | F32: 2018-12-31 | G32: 6000000 | H32: 360 | I32: 6000000 | K32: Total Indemnizacón: | O32: =SUM(N30:O31) -> 62344458.53
E33: 2019-01-01 | F33: 2019-12-31 | G33: 6000000 | H33: 360 | I33: 6000000
E34: 2020-01-01 | F34: 2020-12-31 | G34: 6000000 | H34: 360 | I34: 6000000 | K34: SANCIÓN POR NO CONSIGNACIÓN DE CESANTÍAS
E35: 2021-01-01 | F35: 2021-12-31 | G35: 6000000 | H35: 360 | I35: 6000000 | K35: DESDE | L35: HASTA | M35: SALARIO | N35: DÍAS | O35: SANCIÓN
E36: 2022-01-01 | F36: 2022-12-31 | G36: 6000000 | H36: 360 | I36: 6000000 | K36: 2021-02-15 | L36: 2022-02-14 | M36: 6000000 | N36: =DAYS360(K36,L36)+1 -> 360 | O36: =(M36/30)*N36 -> 72000000
E37: 2023-01-01 | F37: 2023-01-31 | G37: 6000000 | H37: =DAYS360(E37,F37) -> 30 | I37: =(G37*H37)/360 -> 500000 | K37: 2022-02-15 | L37: 2023-01-31 | M37: 6000000 | N37: 347 | O37: 69400000
E38: TOTAL ADEUDADO | I38: =SUM(I22:I37) -> 90500000
K39: TOTAL ADEUDADO | O39: =SUM(O36:O37) -> 141400000
K41: INDEMNIZACIÓN DEL ARTÍCULO 65 DEL C.S.T.
K42: Salario diario | M42: x 720 días | O42: Total
K43: =N29 -> 200000 | M43: 568 | O43: =K43*M43 -> 113600000
G47: Total Liquidación Salarios y Prestaciones: | K47: =SUM(C18+I38+I19+O16+O22+O32+O39+O43) -> 438674897
G48: Total Liquidación Aportes al Sistema: | K48: 355407854.7
G49: TOTAL FINAL | K49: =SUM(K47:K48) -> 794082751.6

Sheet IPC (hidden)
A1: AÑO | B1: IPC
A2: 1971-0 | B2: 0.12
A3: 1972-0 | B3: 0.14
A4: 1973-0 | B4: 0.16
A5: 1974-0 | B5: 0.2
A6: 1975-0 | B6: 0.25
A7: 1976-0 | B7: 0.29
A8: 1977-0 | B8: 0.37
A9: 1978-0 | B9: 0.47
A10: 1979-0 | B10: 0.56
A11: 1980 | B11: 0.72
A12: 1981 | B12: 0.91
A13: 1982 | B13: 1.14
A14: 1983 | B14: 1.42
A15: 1984 | B15: 1.66
A16: 1985 | B16: 1.96
A17: 1986 | B17: 2.4
A18: 1987 | B18: 2.9
A19: 1988 | B19: 3.6
A20: 1989 | B20: 4.61
A21: 1990 | B21: 5.81
A22: 1991 | B22: 7.69
A23: 1992 | B23: 9.74
A24: 1993 | B24: 12.19
A25: 1994 | B25: 14.93
A26: 1995 | B26: 18.29
A27: 1996 | B27: 21.83
A28: 1997 | B28: 26.55
A29: 1998 | B29: 31.23
A30: 1999 | B30: 36.42
A31: 2000 | B31: 39.79
A32: 2001 | B32: 43.27
A33: 2002 | B33: 46.58
A34: 2003 | B34: 49.83
A35: 2004 | B35: 53.07
A36: 2005 | B36: 55.98
A37: 2006 | B37: 58.7
A38: 2007 | B38: 61.33
A39: 2008 | B39: 64.82
A40: 2009 | B40: 69.8
A41: 2010 | B41: 71.2
A42: 2011 | B42: 73.45
A43: 2012 | B43: 76.19
A44: 2013 | B44: 78.05
A45: 2014 | B45: 79.56
A46: 2015 | B46: 82.47
A47: 2016 | B47: 88.05
A48: 2017 | B48: 93.11
A49: 2018 | B49: 96.92
A50: 2019 | B50: 100
A51: 2020-0 | B51: 103.8
A52: 2021-0 | B52: 105.48
A53: 2022-0 | B53: 111.41
A54: 2023-0 | B54: 126.03
A55: 2024-0 | B55: 137.72

Sheet Hoja3 (hidden)
C5: 456
D12: =TEXT(C5,"$0") -> $456

Sheet DATOS (hidden)
AS1: 2000
B2: TABLA INFORMATIVA
B3: AÑO | C3: Incremento P
B4: 1967 | C4: 0.0717
B5: 1968 | C5: 0.0651
B6: 1969 | C6: 0.0863
B7: 1970 | C7: 0.0658
B8: 1971 | C8: 0.1403
B9: 1972 | C9: 0.1399
B10: 1973 | C10: 0.2408
B11: 1974 | C11: 0.2635
B12: 1975 | C12: 0.1777
B13: 1976 | C13: 0.2576
B14: 1977 | C14: 0.2871
B15: 1978 | C15: 0.1842
B16: 1979 | C16: 0.288
B17: 1980 | C17: 0.2585
B18: 1981 | C18: 0.2636
B19: 1982 | C19: 0.2403
B20: 1983 | C20: 0.1664
B21: 1984 | C21: 0.1828
B22: 1985 | C22: 0.2245
B23: 1986 | C23: 0.2095
B24: 1987 | C24: 0.2402
B25: 1988 | C25: 0.2812
B26: 1989 | C26: 0.2612
B27: 1990 | C27: 0.3236
B28: 1991 | C28: 0.2682
B29: 1992 | C29: 0.2513
B30: 1993 | C30: 0.226
B31: 1994 | C31: 0.2259
B32: 1995 | C32: 0.1946
B33: 1996 | C33: 0.2163
B34: 1997 | C34: 0.1768
B35: 1998 | C35: 0.167
B36: 1999 | C36: 0.0923
B37: 2000 | C37: 0.0875
B38: 2001 | C38: 0.0765
B39: 2002 | C39: 0.0699
B40: 2003 | C40: 0.0649
B41: 2004 | C41: 0.055
B42: 2005 | C42: 0.0485
B43: 2006 | C43: 0.0448
B44: 2007 | C44: 0.0569
B45: 2008 | C45: 0.0767
B46: 2009 | C46: 0.02
B47: 2010 | C47: 0.0317
B48: 2011 | C48: 0.0373
B49: 2012 | C49: 0.0244
B50: 2013 | C50: 0.0194
B51: 2014 | C51: 0.0366
B52: 2015 | C52: 0.0677
B53: 2016 | C53: 0.0575
B54: 2017 | C54: 0.0409
B55: 2018 | C55: 0.0318
B56: 2019 | C56: 0.038
B57: 2020 | C57: 0.0161
B58: 2021 | C58: 0.0562
B59: 2022 | C59: 0.1312
B60: 2023 | C60: 0.0928
